fUSD/lending_fUSD_20240820
["ID","MTS","AMOUNT","RATE_DAILY","PERIOD"]
[335335258,1724121043842,-150.0,0.00010736,2]
[335335259,1724121043851,-150.0,0.00010737,2]
[335335260,1724121043860,-150.0,0.0001074,2]
[335335261,1724121043870,-150.0,0.00010749,2]
[335335262,1724121043879,-150.0,0.00010749,2]
[335335263,1724121043889,-150.0,0.00010751,2]
[335335264,1724121043898,-150.0,0.00010754,2]
[335335265,1724121043907,-150.0,0.00010754,2]
[335335266,1724121043917,-150.0,0.00010755,2]
[335335267,1724121043927,-150.0,0.00010758,2]
[335335268,1724121043936,-150.0,0.00010758,2]
[335335269,1724121043945,-150.0,0.00010758,2]
[335335270,1724121043954,-150.0,0.0001076,2]
[335335271,1724121043963,-150.0,0.00010762,2]
[335335272,1724121043973,-150.0,0.00010762,2]
[335335273,1724121043982,-150.0,0.00010763,2]
[335335274,1724121043992,-150.0,0.00010763,2]
[335335275,1724121044001,-150.0,0.00010765,2]
[335335276,1724121044011,-150.0,0.00010767,2]
[335335277,1724121044020,-150.0,0.00010771,2]
[335335278,1724121044029,-232.54440653,0.00010777,2]
[335335279,1724121044038,-150.0,0.00010779,2]
[335335280,1724121044046,-150.0,0.0001078,2]
[335335281,1724121044056,-150.0,0.0001078,2]
[335335282,1724121044065,-500.0,0.00010782,2]
[335335283,1724121044074,-500.0,0.00010782,2]
[335335284,1724121044084,-500.0,0.00010782,2]
[335335285,1724121044093,-500.0,0.00010782,2]
[335335286,1724121044103,-500.0,0.00010782,2]
[335335287,1724121044112,-500.0,0.00010782,2]
[335335288,1724121044121,-500.0,0.00010782,2]
[335335289,1724121044130,-500.0,0.00010782,2]
[335335290,1724121044139,-500.0,0.00010782,2]
[335335291,1724121044148,-500.0,0.00010782,2]
[335335292,1724121044157,-150.0,0.00010783,2]
[335335293,1724121044167,-150.0,0.00010785,2]
[335335294,1724121044176,-150.0,0.00010786,2]
[335335295,1724121044345,-150.0,0.00010787,2]
[335335296,1724121044355,-150.0,0.00010791,2]
[335335297,1724121044370,-150.0,0.00010796,2]
[335335298,1724121044379,-500.0,0.00010798,2]
[335335299,1724121044389,-1152.75,0.00010798,2]
[335335300,1724121044398,-1336.15,0.00010798,2]
[335335301,1724121044408,-500.0,0.00010798,2]
[335335302,1724121044418,-500.0,0.00010798,2]
[335335303,1724121044427,-500.0,0.00010798,2]
[335335304,1724121044435,-500.0,0.00010798,2]
[335335305,1724121044444,-580.17,0.00010798,2]
[335335306,1724121044454,-605.88,0.00010798,2]
[335335307,1724121044463,-617.46,0.00010798,2]
[335335308,1724121044472,-1247.5,0.00010798,2]
[335335309,1724121044481,-1367.98,0.00010798,2]
[335335310,1724121044490,-704.69,0.00010798,2]
[335335311,1724121044499,-641.7,0.00010798,2]
[335335312,1724121044508,-2595.48,0.00010798,2]
[335335313,1724121044517,-1680.86,0.00010798,2]
[335335314,1724121044526,-512.03,0.00010798,2]
[335335315,1724121044535,-500.0,0.00010798,2]
[335335316,1724121044545,-1259.05,0.00010798,2]
[335335317,1724121044554,-1911.16,0.00010798,2]
[335335318,1724121044564,-661.39,0.00010798,2]
[335335319,1724121044573,-822.42,0.00010798,2]
[335335320,1724121044582,-5810.04,0.00010798,2]
[335335321,1724121044591,-675.33,0.00010798,2]
[335335322,1724121044600,-500.0,0.00010798,2]
[335335323,1724121044609,-500.0,0.00010798,2]
[335335324,1724121044619,-150.0,0.00010799,2]
[335335325,1724121044628,-150.0,0.00010799,2]
[335335326,1724121044637,-359.35910644,0.00010799,2]
[335335327,1724121044646,-500.0,0.000108,3]
[335335328,1724121044655,-150.0,0.00010802,2]
[335335329,1724121044665,-150.0,0.00010803,2]
[335335330,1724121044675,-500.0,0.00010803,2]
[335335331,1724121044684,-150.0,0.00010809,2]
[335335332,1724121044693,-150.0,0.00010809,2]
[335335333,1724121044702,-150.0,0.00010815,2]
[335335334,1724121044712,-150.0,0.00010816,2]
[335335335,1724121044722,-150.0,0.00010818,2]
[335335336,1724121044731,-150.0,0.00010828,2]
[335335337,1724121044740,-500.0,0.00010831,2]
[335335338,1724121044749,-500.0,0.00010831,2]
[335335339,1724121044759,-500.0,0.00010831,2]
[335335340,1724121044768,-500.0,0.00010831,2]
[335335341,1724121044777,-500.0,0.00010831,2]
[335335342,1724121044787,-500.0,0.00010831,2]
[335335343,1724121044796,-830.83,0.00010831,2]
[335335344,1724121044805,-500.0,0.00010831,2]
[335335345,1724121044814,-751.36,0.00010831,2]
[335335346,1724121044823,-599.00650567,0.00010831,2]
[335335347,1724121044832,-150.0,0.00010832,2]
[335335348,1724121044841,-500.0,0.00010832,2]
[335335349,1724121044851,-500.0,0.00010832,2]
[335335350,1724121044860,-500.67536185,0.00010832,2]
[335335351,1724121044870,-500.0,0.00010832,2]
[335335352,1724121044879,-500.0,0.00010833,2]
[335335353,1724121044888,-500.0,0.00010833,2]
[335335354,1724121044898,-3112.17,0.00010833,2]
[335335355,1724121044907,-2979.54,0.00010833,2]
[335335356,1724121044917,-150.0,0.00010835,2]
[335335357,1724121044926,-663.03500001,0.00010835,2]
[335335358,1724121044935,-150.0,0.00010836,2]
[335335359,1724121044944,-150.0,0.00010838,2]
[335335360,1724121044954,-150.0,0.00010839,2]
[335335361,1724121044963,-150.0,0.0001084,2]
[335335362,1724121044973,-150.0,0.00010841,2]
[335335363,1724121044982,-726.33,0.00010843,2]
[335335364,1724121044991,-150.0,0.00010845,2]
[335335365,1724121045001,-150.0,0.00010846,2]
[335335366,1724121045010,-600.0,0.00010849,2]
[335335367,1724121045019,-275.23203234,0.00010852,2]
[335335368,1724121045028,-150.0,0.00010854,2]
[335335369,1724121045038,-150.0,0.00010854,2]
[335335370,1724121045047,-150.0,0.00010855,2]
[335335371,1724121045056,-403.36309814,0.00010861,2]
[335335372,1724121045065,-150.0,0.00010861,2]
[335335373,1724121045075,-150.0,0.00010861,2]
[335335374,1724121045084,-299.04888554,0.00010862,2]
[335335375,1724121045093,-150.0,0.00010863,2]
[335335376,1724121045102,-150.0,0.00010866,2]
[335335377,1724121045111,-150.0,0.00010871,2]
[335335378,1724121045120,-150.0,0.00010873,2]
[335335379,1724121045129,-150.0,0.00010875,2]
[335335380,1724121045138,-150.0,0.00010875,2]
[335335381,1724121045147,-150.0,0.00010878,2]
[335335382,1724121045156,-912.73332,0.0001088,2]
[335335383,1724121045166,-150.0,0.00010882,2]
[335335384,1724121045175,-150.0,0.0001089,2]
[335335385,1724121045184,-150.0,0.0001089,2]
[335335386,1724121045193,-7500.0,0.0001089,2]
[335335387,1724121045203,-150.0,0.00010891,2]
[335335388,1724121045212,-150.0,0.00010895,2]
[335335389,1724121045222,-171.7717053,0.00010897,2]
[335335390,1724121045231,-150.0,0.00010898,2]
[335335391,1724121045240,-179.18144967,0.00010899,2]
[335335392,1724121045249,-179.18144961,0.00010899,2]
[335335393,1724121045259,-179.18144961,0.00010899,2]
[335335394,1724121045268,-179.18144961,0.00010899,2]
[335335395,1724121045278,-179.18144961,0.00010899,2]
[335335396,1724121045291,-179.18144961,0.00010899,2]
[335335397,1724121045300,-179.18144961,0.00010899,2]
[335335398,1724121045310,-179.18144961,0.00010899,2]
[335335399,1724121045319,-179.18144961,0.00010899,2]
[335335400,1724121045329,-500.0,0.000109,3]
[335335401,1724121045338,-179.18144961,0.000109,2]
[335335402,1724121045347,-211.69803056,0.000109,2]
[335335403,1724121045357,-1005.0,0.000109,2]
[335335404,1724121045366,-150.0,0.00010908,2]
[335335405,1724121045375,-150.0,0.00010909,2]
[335335406,1724121045384,-500.0,0.00010911,2]
[335335407,1724121045394,-150.0,0.00010914,2]
[335335408,1724121045404,-150.0,0.00010915,2]
[335335409,1724121045414,-150.0,0.0001092,2]
[335335410,1724121045425,-150.0,0.0001092,2]
[335335411,1724121045434,-844.0,0.00010921,2]
[335335412,1724121045442,-150.0,0.00010922,2]
[335335413,1724121045452,-150.0,0.00010923,2]
[335335414,1724121045461,-653.66147487,0.0001093,2]
[335335415,1724121045470,-150.0,0.00010933,2]
[335335416,1724121045479,-150.0,0.00010936,2]
[335335417,1724121045489,-150.0,0.00010938,2]
[335335418,1724121045498,-150.0,0.00010945,2]
[335335419,1724121045507,-150.0,0.00010946,2]
[335335420,1724121045516,-150.0,0.00010949,2]
[335335421,1724121045525,-150.0,0.00010955,2]
[335335422,1724121045535,-324.12840728,0.00010958,2]
[335335423,1724121045543,-500.0,0.00010958,2]
[335335424,1724121045552,-342.56609894,0.00010958,2]
[335335425,1724121045562,-150.0,0.00010958,2]
[335335426,1724121045571,-150.0,0.00010958,2]
[335335427,1724121045580,-150.0,0.00010959,2]
[335335428,1724121045589,-151.94,0.00010959,2]
[335335429,1724121045599,-250.0,0.00010959,2]
[335335430,1724121045608,-2000.0,0.00010959,2]
[335335431,1724121045617,-600.0,0.00010959,2]
[335335432,1724121045627,-150.0,0.0001096,2]
[335335433,1724121045637,-150.0,0.0001096,2]
[335335434,1724121045647,-150.0,0.00010961,2]
[335335435,1724121045656,-150.0,0.00010962,2]
[335335436,1724121045666,-150.0,0.00010962,2]
[335335437,1724121045676,-150.0,0.00010967,2]
[335335438,1724121045685,-150.0,0.00010967,2]
[335335439,1724121045694,-200.0,0.00010973,2]
[335335440,1724121045704,-150.0,0.00010976,2]
[335335441,1724121045713,-150.0,0.00010979,2]
[335335442,1724121045723,-163.06333231,0.00010981,2]
[335335443,1724121045732,-509.44486345,0.00010982,2]
[335335444,1724121045741,-500.0,0.00010982,2]
[335335445,1724121045750,-500.0,0.00010982,2]
[335335446,1724121045759,-4666.5962111,0.00010983,2]
[335335447,1724121045768,-556.2153826,0.00010983,2]
[335335448,1724121045777,-2067.8970158,0.00010983,2]
[335335449,1724121045787,-414.8382619,0.00010983,2]
[335335450,1724121045796,-30190.7312684,0.00010983,2]
[335335451,1724121045806,-150.0,0.00010984,2]
[335335452,1724121045815,-150.0,0.00010984,2]
[335335453,1724121045825,-150.0,0.00010987,2]
[335335454,1724121045835,-500.0,0.00010989,2]
[335335455,1724121045844,-500.0,0.00010989,2]
[335335456,1724121045853,-500.0,0.00010989,2]
[335335457,1724121045863,-500.0,0.00010989,2]
[335335458,1724121045873,-500.0,0.00010989,2]
[335335459,1724121045882,-500.0,0.00010989,2]
[335335460,1724121045891,-500.0,0.00010989,2]
[335335461,1724121045901,-500.0,0.00010989,2]
[335335462,1724121045911,-500.0,0.00010989,2]
[335335463,1724121045922,-500.0,0.00010989,2]
[335335464,1724121045931,-500.0,0.00010989,2]
[335335465,1724121045940,-500.0,0.00010989,2]
[335335466,1724121045949,-500.0,0.00010989,2]
[335335467,1724121045959,-500.0,0.00010989,2]
[335335468,1724121045968,-3112.17,0.00010989,2]
[335335469,1724121045977,-3112.17,0.00010989,2]
[335335470,1724121045987,-1152.75,0.00010989,2]
[335335471,1724121045996,-1152.75,0.00010989,2]
[335335472,1724121046005,-500.0,0.00010989,2]
[335335473,1724121046015,-179.83743219,0.00010989,2]
[335335474,1724121046024,-1336.15,0.00010989,2]
[335335475,1724121046033,-1336.15,0.00010989,2]
[335335476,1724121046042,-500.0,0.00010989,2]
[335335477,1724121046051,-500.0,0.00010989,2]
[335335478,1724121046060,-500.0,0.00010989,2]
[335335479,1724121046069,-500.0,0.00010989,2]
[335335480,1724121046078,-500.0,0.00010989,2]
[335335481,1724121046087,-500.0,0.00010989,2]
[335335482,1724121046096,-500.0,0.00010989,2]
[335335483,1724121046104,-500.0,0.00010989,2]
[335335484,1724121046114,-580.17,0.00010989,2]
[335335485,1724121046123,-580.17,0.00010989,2]
[335335486,1724121046132,-560.44989593,0.00010989,2]
[335335487,1724121046140,-605.88,0.00010989,2]
[335335488,1724121046150,-605.88,0.00010989,2]
[335335489,1724121046159,-830.83,0.00010989,2]
[335335490,1724121046169,-830.83,0.00010989,2]
[335335491,1724121046179,-500.0,0.00010989,2]
[335335492,1724121046188,-500.0,0.00010989,2]
[335335493,1724121046198,-617.46,0.00010989,2]
[335335494,1724121046208,-617.46,0.00010989,2]
[335335495,1724121046219,-500.0,0.00010989,2]
[335335496,1724121046228,-500.0,0.00010989,2]
[335335497,1724121046237,-1247.5,0.00010989,2]
[335335498,1724121046247,-1247.5,0.00010989,2]
[335335499,1724121046256,-1367.98,0.00010989,2]
[335335500,1724121046266,-1367.98,0.00010989,2]
[335335501,1724121046275,-2979.54,0.00010989,2]
[335335502,1724121046289,-2979.54,0.00010989,2]
[335335503,1724121046298,-704.69,0.00010989,2]
[335335504,1724121046307,-704.69,0.00010989,2]
[335335505,1724121046316,-641.7,0.00010989,2]
[335335506,1724121046325,-641.7,0.00010989,2]
[335335507,1724121046336,-2595.48,0.00010989,2]
[335335508,1724121046345,-2595.48,0.00010989,2]
[335335509,1724121046354,-1680.86,0.00010989,2]
[335335510,1724121046366,-1680.86,0.00010989,2]
[335335511,1724121046375,-512.03,0.00010989,2]
[335335512,1724121046384,-512.03,0.00010989,2]
[335335513,1724121046395,-500.0,0.00010989,2]
[335335514,1724121046404,-500.0,0.00010989,2]
[335335515,1724121046414,-500.0,0.00010989,2]
[335335516,1724121046426,-1259.05,0.00010989,2]
[335335517,1724121046435,-1259.05,0.00010989,2]
[335335518,1724121046444,-1911.16,0.00010989,2]
[335335519,1724121046454,-1911.16,0.00010989,2]
[335335520,1724121046463,-500.0,0.00010989,2]
[335335521,1724121046473,-500.0,0.00010989,2]
[335335522,1724121046482,-232.05719693,0.00010989,2]
[335335523,1724121046492,-661.39,0.00010989,2]
[335335524,1724121046503,-661.39,0.00010989,2]
[335335525,1724121046512,-822.42,0.00010989,2]
[335335526,1724121046521,-822.42,0.00010989,2]
[335335527,1724121046530,-500.0,0.00010989,2]
[335335528,1724121046540,-565.47187419,0.00010989,2]
[335335529,1724121046550,-500.0,0.00010989,2]
[335335530,1724121046559,-500.0,0.00010989,2]
[335335531,1724121046568,-500.0,0.00010989,2]
[335335532,1724121046577,-500.0,0.00010989,2]
[335335533,1724121046586,-751.36,0.00010989,2]
[335335534,1724121046595,-751.36,0.00010989,2]
[335335535,1724121046604,-500.0,0.00010989,2]
[335335536,1724121046613,-5810.04,0.00010989,2]
[335335537,1724121046622,-5810.04,0.00010989,2]
[335335538,1724121046632,-675.33,0.00010989,2]
[335335539,1724121046641,-675.33,0.00010989,2]
[335335540,1724121046650,-500.0,0.00010989,2]
[335335541,1724121046659,-500.0,0.00010989,2]
[335335542,1724121046670,-500.0,0.00010989,2]
[335335543,1724121046679,-500.0,0.00010989,2]
[335335544,1724121046689,-500.0,0.00010989,2]
[335335545,1724121046698,-500.0,0.00010989,2]
[335335546,1724121046708,-500.0,0.00010989,2]
[335335547,1724121046717,-500.0,0.00010989,2]
[335335548,1724121046726,-500.0,0.00010989,2]
[335335549,1724121046736,-500.0,0.00010989,2]
[335335550,1724121046745,-290354.76587443,0.0001099,3]
[335335551,1724121046755,-46889.1908681,0.0001099,3]
[335335552,1724121046763,-500.0,0.0001099,2]
[335335553,1724121046773,-110847.65070804,0.0001099,2]
[335335554,1724121046782,-500.0,0.00010991,2]
[335335555,1724121046791,-500.0,0.00010991,2]
[335335556,1724121046801,-5155.634764,0.00010992,2]
[335335557,1724121046810,-5644.673317,0.00010992,2]
[335335558,1724121046819,-6133.71187,0.00010992,2]
[335335559,1724121046829,-2202.1036283,0.00010992,2]
[335335560,1724121046838,-2336.3102408,0.00010992,2]
[335335561,1724121046847,-2470.5168532,0.00010992,2]
[335335562,1724121046857,-366.9223773,0.00010992,2]
[335335563,1724121046866,-319.0064927,0.00010992,2]
[335335564,1724121046875,-271.0906081,0.00010992,2]
[335335565,1724121046884,-26703.5514975,0.00010992,2]
[335335566,1724121046893,-23216.3717265,0.00010992,2]
[335335567,1724121046903,-19729.1919555,0.00010992,2]
[335335568,1724121046913,-162.11,0.00010994,2]
[335335569,1724121046924,-150.49631115,0.00010997,2]
[335335570,1724121046934,-500.0,0.00010997,2]
[335335571,1724121046943,-500.0,0.00010997,2]
[335335572,1724121046954,-500.0,0.00010997,2]
[335335573,1724121046963,-648.25098367,0.00010997,2]
[335335574,1724121046972,-500.0,0.00010997,2]
[335335575,1724121046982,-500.0,0.00010997,2]
[335335576,1724121046991,-3112.17,0.00010997,2]
[335335577,1724121047000,-1152.75,0.00010997,2]
[335335578,1724121047009,-1336.15,0.00010997,2]
[335335579,1724121047018,-500.0,0.00010997,2]
[335335580,1724121047028,-500.0,0.00010997,2]
[335335581,1724121047037,-500.0,0.00010997,2]
[335335582,1724121047046,-500.0,0.00010997,2]
[335335583,1724121047055,-580.17,0.00010997,2]
[335335584,1724121047064,-605.88,0.00010997,2]
[335335585,1724121047074,-830.83,0.00010997,2]
[335335586,1724121047083,-500.0,0.00010997,2]
[335335587,1724121047092,-617.46,0.00010997,2]
[335335588,1724121047102,-500.0,0.00010997,2]
[335335589,1724121047111,-1247.5,0.00010997,2]
[335335590,1724121047121,-1367.98,0.00010997,2]
[335335591,1724121047130,-2979.54,0.00010997,2]
[335335592,1724121047139,-704.69,0.00010997,2]
[335335593,1724121047149,-641.7,0.00010997,2]
[335335594,1724121047158,-2595.48,0.00010997,2]
[335335595,1724121047169,-1680.86,0.00010997,2]
[335335596,1724121047182,-512.03,0.00010997,2]
[335335597,1724121047191,-500.0,0.00010997,2]
[335335598,1724121047201,-500.0,0.00010997,2]
[335335599,1724121047210,-1259.05,0.00010997,2]
[335335600,1724121047219,-1911.16,0.00010997,2]
[335335601,1724121047228,-500.0,0.00010997,2]
[335335602,1724121047237,-661.39,0.00010997,2]
[335335603,1724121047246,-822.42,0.00010997,2]
[335335604,1724121047255,-500.0,0.00010997,2]
[335335605,1724121047264,-500.0,0.00010997,2]
[335335606,1724121047274,-751.36,0.00010997,2]
[335335607,1724121047288,-500.0,0.00010997,2]
[335335608,1724121047297,-5810.04,0.00010997,2]
[335335609,1724121047307,-675.33,0.00010997,2]
[335335610,1724121047317,-500.0,0.00010997,2]
[335335611,1724121047327,-500.0,0.00010997,2]
[335335612,1724121047337,-500.0,0.00010997,2]
[335335613,1724121047346,-500.0,0.00010997,2]
[335335614,1724121047357,-500.0,0.00010997,2]
[335335615,1724121047367,-248.043424,0.00010998,2]
[335335616,1724121047376,-151.0,0.00010998,2]
[335335617,1724121047385,-151.0,0.00010998,2]
[335335618,1724121047394,-500.0,0.00010998,2]
[335335619,1724121047404,-500.0,0.00010998,2]
[335335620,1724121047413,-500.0,0.00010998,2]
[335335621,1724121047424,-386.03007581,0.00010998,2]
[335335622,1724121047434,-500.0,0.00010998,2]
[335335623,1724121047443,-162.04721427,0.00010998,2]
[335335624,1724121047452,-500.0,0.00010998,2]
[335335625,1724121047462,-500.0,0.00010998,2]
[335335626,1724121047471,-500.0,0.00010998,2]
[335335627,1724121047481,-500.0,0.00010998,2]
[335335628,1724121047490,-3112.17,0.00010998,2]
[335335629,1724121047499,-3112.17,0.00010998,2]
[335335630,1724121047508,-1097.5678189,0.00010998,2]
[335335631,1724121047525,-55.1821811,0.00010998,2]
[335335632,1724121047534,-408.11368252,0.00010998,2]
[335335633,1724121047546,-744.63631748,0.00010998,2]
[335335634,1724121047555,-1336.15,0.00010998,2]
[335335635,1724121047563,-140.75437947,0.00010998,2]
[335335636,1724121048285,-330.01116477,0.00010699,2]
[335335637,1724121048294,-150.0,0.00010716,2]
[335335638,1724121048303,-150.0,0.00010733,2]
[335335639,1724121048313,-150.0,0.00010735,2]
[335335640,1724121048322,-150.0,0.00010737,2]
[335335641,1724121048331,-150.0,0.00010738,2]
[335335642,1724121048340,-150.0,0.00010742,2]
[335335643,1724121048349,-150.0,0.00010744,2]
[335335644,1724121048361,-150.0,0.0001075,2]
[335335645,1724121048370,-150.0,0.0001076,2]
[335335646,1724121048379,-150.0,0.00010761,2]
[335335647,1724121048388,-150.0,0.00010762,2]
[335335648,1724121048397,-150.0,0.00010765,2]
[335335649,1724121048407,-150.0,0.0001077,2]
[335335650,1724121048417,-150.0,0.00010771,2]
[335335651,1724121048427,-150.0,0.00010787,2]
[335335652,1724121048436,-150.0,0.00010789,2]
[335335653,1724121048445,-150.0,0.00010792,2]
[335335654,1724121048454,-150.0,0.00010792,2]
[335335655,1724121048463,-150.0,0.00010812,2]
[335335656,1724121048472,-150.0,0.00010821,2]
[335335657,1724121048481,-150.0,0.00010833,2]
[335335658,1724121048490,-150.0,0.00010843,2]
[335335659,1724121048499,-150.0,0.00010853,2]
[335335660,1724121048508,-150.0,0.00010855,2]
[335335661,1724121048517,-150.0,0.00010858,2]
[335335662,1724121048526,-150.0,0.00010862,2]
[335335663,1724121048535,-150.0,0.00010868,2]
[335335664,1724121048544,-150.0,0.00010868,2]
[335335665,1724121048553,-150.0,0.00010875,2]
[335335666,1724121048562,-150.0,0.00010878,2]
[335335667,1724121048570,-150.0,0.00010883,2]
[335335668,1724121048580,-150.0,0.00010884,2]
[335335669,1724121048589,-150.0,0.00010886,2]
[335335670,1724121048598,-150.0,0.00010889,2]
[335335671,1724121048607,-150.0,0.00010891,2]
[335335672,1724121048616,-150.0,0.00010895,2]
[335335673,1724121048625,-150.0,0.000109,2]
[335335674,1724121048634,-150.0,0.00010901,2]
[335335675,1724121048643,-150.0,0.0001091,2]
[335335676,1724121048653,-150.0,0.00010915,2]
[335335677,1724121048662,-150.0,0.00010919,2]
[335335678,1724121048673,-150.0,0.00010928,2]
[335335679,1724121048682,-150.0,0.00010928,2]
[335335680,1724121048691,-150.0,0.00010929,2]
[335335681,1724121048701,-150.0,0.0001093,2]
[335335682,1724121048710,-150.0,0.00010938,2]
[335335683,1724121048719,-150.0,0.00010942,2]
[335335684,1724121048728,-150.0,0.00010949,2]
[335335685,1724121048737,-150.0,0.00010965,2]
[335335686,1724121048747,-150.0,0.00010969,2]
[335335687,1724121048756,-150.0,0.00010969,2]
[335335688,1724121048766,-150.0,0.00010971,2]
[335335689,1724121048775,-150.0,0.00010976,2]
[335335690,1724121048785,-1195.39562053,0.00010998,2]
[335335691,1724121048794,-500.0,0.00010998,2]
[335335692,1724121048804,-500.0,0.00010998,2]
[335335693,1724121048813,-500.0,0.00010998,2]
[335335694,1724121048822,-500.0,0.00010998,2]
[335335695,1724121048831,-500.0,0.00010998,2]
[335335696,1724121048841,-500.0,0.00010998,2]
[335335697,1724121048850,-500.0,0.00010998,2]
[335335698,1724121048860,-500.0,0.00010998,2]
[335335699,1724121048869,-580.17,0.00010998,2]
[335335700,1724121048879,-580.17,0.00010998,2]
[335335701,1724121048888,-605.88,0.00010998,2]
[335335702,1724121048897,-605.88,0.00010998,2]
[335335703,1724121048906,-830.83,0.00010998,2]
[335335704,1724121048916,-830.83,0.00010998,2]
[335335705,1724121048925,-219.60999833,0.00010998,2]
[335335706,1724121048934,-617.46,0.00010998,2]
[335335707,1724121048943,-617.46,0.00010998,2]
[335335708,1724121048953,-430.12394991,0.00010998,2]
[335335709,1724121048962,-1247.5,0.00010998,2]
[335335710,1724121048971,-303.47440626,0.00010998,2]
[335335711,1724121048983,-944.02559374,0.00010998,2]
[335335712,1724121048992,-1367.98,0.00010998,2]
[335335713,1724121049002,-1367.98,0.00010998,2]
[335335714,1724121049011,-2206.86230106,0.00010998,2]
[335335715,1724121049022,-772.67769894,0.00010998,2]
[335335716,1724121049031,-2979.54,0.00010998,2]
[335335717,1724121049040,-101.9493011,0.00010998,2]
[335335718,1724121049076,-150.0,0.0001079,2]
[335335719,1724121049085,-150.0,0.00010821,2]
[335335720,1724121049094,-13.06330969,0.00010948,2]
[335335721,1724121146411,184.21,9.873e-05,2]
[335335722,1724121349125,598.02,8.219e-05,2]
[335335723,1724121494933,297.09,9.735e-05,2]
[335335724,1724121565996,1000.0,9.737e-05,2]
[335335725,1724121576361,687.53484988,9.899e-05,2]
[335335726,1724121621666,1238.57,9.777e-05,2]
[335335727,1724121641411,155.36,9.776e-05,2]
[335335728,1724121678341,533.25,9.777e-05,2]
[335335729,1724121684852,563.05,9.781e-05,2]
[335335730,1724121724248,155.42551328,9.899e-05,2]
[335335731,1724121863866,568.11,8.219e-05,2]
[335335732,1724121883988,2511.73,9.711e-05,2]
[335335734,1724121989289,200.0,9.743e-05,2]
[335335735,1724122048917,200.0,9.673e-05,2]
[335335736,1724122051456,544.85,9.739e-05,2]
[335335737,1724122101950,1266.23,9.648e-05,2]
[335335738,1724122114794,160.43,9.641e-05,2]
[335335749,1724122232157,-256.52006743,9.999e-05,2]
[335335750,1724122232167,-278.75362519,9.999e-05,2]
[335335751,1724122232178,-434.6517217,9.999e-05,2]
[335335752,1724122232187,-156.14180465,9.999e-05,2]
[335335753,1724122232197,-195.56675906,0.0001,2]
[335335754,1724122232206,-167.30606886,0.00010009,2]
[335335755,1724122232215,-349.33932498,0.00010009,2]
[335335756,1724122232225,-218.36585275,0.00010026,2]
[335335757,1724122232234,-155.0,0.00010026,2]
[335335758,1724122232243,-300.0,0.00010096,2]
[335335759,1724122232252,-1315.32530208,0.00010097,2]
[335335760,1724122232261,-400.0,0.000101,3]
[335335761,1724122232270,-900.0,0.000102,3]
[335335762,1724122232279,-1400.0,0.000103,3]
[335335763,1724122232288,-535.93611025,0.000104,3]
[335335764,1724122232299,-295.44814184,0.000104,3]
[335335765,1724122232310,-968.61574791,0.000104,3]
[335335766,1724122232319,-224.27917139,0.000104,2]
[335335767,1724122232330,-275.71082861,0.000104,2]
[335335768,1724122232339,-568.11,0.00010465,2]